Cogmind - Beta 13 @@@ ROGUE MODE // 2024.06.12 @ 00:46:24 Player: doughoff Result: Self-destructed Performance ------------- Evolutions (2) 1000 Regions Visited (5) 1000 Robots Destroyed (30) 150 Value Destroyed (445) 445 Prototype IDs (0) 0 Alien Tech Used (0) 0 Bonus (0) 0 TOTAL SCORE: 2595 Bonus ------- None Cogmind --------- Core Integrity 550/550 Matter 216/300 Energy 125/125 System Corruption 0% Temperature Cool (0) Movement Walking (120) Location -8/Materials Parts ------- > --- POWER (1) -------- Light Ion Engine > --- PROPULSION (4) --- Aluminum Leg Aluminum Leg Aluminum Leg > --- UTILITY (4) ------ Medium Storage Unit Targeting Computer Light Armor Plating > --- WEAPON (2) ------- (None) > --- INVENTORY (10) --- Aluminum Leg Aluminum Leg Compact Wheel Beam Rifle Beam Rifle Improved Light Cannon Improved Light Cannon Improved Light Cannon Grenade Launcher Mining Claw Peak State ------------ > --- POWER ------------ Improved Ion Engine > --- PROPULSION ------- Aluminum Leg Aluminum Leg Aluminum Leg > --- UTILITY ---------- Medium Storage Unit Targeting Computer Light Armor Plating > --- WEAPON ----------- Improved Light Cannon Improved Light Cannon > --- INVENTORY -------- Aluminum Leg Aluminum Leg Compact Wheel Beam Rifle Beam Rifle Light Assault Rifle Improved Light Cannon Grenade Launcher Mining Claw [Rating: 13] Favorites ----------- Power Improved Ion Engine Engine Improved Ion Engine Propulsion Aluminum Leg Leg Aluminum Leg Utility Targeting Computer Storage Medium Storage Unit Processor Targeting Computer Protection Light Armor Plating Weapon Light Assault Rifle Energy Gun Small Laser Ballistic Gun Light Assault Rifle Ballistic Cannon Light Cannon Launcher Grenade Launcher Build | -11 -10 -10 -9 -9 -8 ------- Run | Yrd Mat Min Mat Min Mat Slots Evolved 4 | . . . 2 . 2 Power . | . . . . . . Propulsion 2 | . . . 1 . 1 Utility 2 | . . . 1 . 1 Weapon . | . . . . . . Parts Attached 31 | 6 13 5 5 2 . Power 6 | 1 3 1 . 1 . Engine 6 | 1 3 1 . 1 . Core . | . . . . . . Reactor . | . . . . . . Propulsion 7 | 2 2 2 1 . . Treads . | . . . . . . Leg 7 | 2 2 2 1 . . Wheel . | . . . . . . Hover . | . . . . . . Flight . | . . . . . . Utility 4 | 1 2 . 1 . . Device . | . . . . . . Storage 2 | 1 1 . . . . Processor 1 | . 1 . . . . Hackware . | . . . . . . Protection 1 | . . . 1 . . Artifact . | . . . . . . Weapon 14 | 2 6 2 3 1 . Energy Gun 2 | 1 1 . . . . Energy Cannon . | . . . . . . Ballistic Gun 6 | 1 5 . . . . Ballistic Cannon 5 | . . 1 3 1 . Launcher 1 | . . 1 . . . Special Weapon . | . . . . . . Impact Weapon . | . . . . . . Slashing Weapon . | . . . . . . Piercing Weapon . | . . . . . . Special Melee Weapon . | . . . . . . Unidentified Prototypes . | . . . . . . Parts Lost 3 | . 1 1 . 1 . Power 1 | . . 1 . . . Propulsion 1 | . 1 . . . . Utility . | . . . . . . Weapon 1 | . . . . 1 . Highest Loss Streak 1 | . 1 1 . 1 . To Critical Strikes . | . . . . . . Average Slot Usage (%) 99 | . 98 99 99 100 . Engine 12 | . 14 13 11 11 . Leg 30 | . 28 28 33 33 . Storage 12 | . 14 14 11 11 . Processor 12 | . 13 14 11 11 . Protection 4 | . . . 11 11 . Energy Gun 2 | . 6 . . . . Ballistic Gun 12 | . 21 20 1 . . Ballistic Cannon 10 | . . 7 20 22 . Naked Turns . | . . . . . . Heaviest Build 28 | 12 19 21 27 28 . Greatest Support 30 | 20 20 20 30 30 . Greatest Overweight (x) 1 | 1 . 1 . . . Average Overweight (x) . | . . . . . . Largest Inventory Capacity 10 | 8 10 10 10 10 . Average Capacity 9 | 7 8 10 10 10 . Most Carried 10 | 4 10 10 10 10 . Average Carried 8 | 2 6 8 9 9 . Final Capacity 10 | 8 10 10 10 10 10 Final Carried 10 | 3 9 10 10 10 10 Class Distribution -------------------- 80% | Mutant 19% | Scavenger-Mutant Dominant Class ---------------- Mutant | -10/Materials Mutant | -10/Mines Mutant | -9/Materials Mutant | -9/Mines Mutant | -8/Materials Resources | -11 -10 -10 -9 -9 -8 ----------- Run | Yrd Mat Min Mat Min Mat Matter Collected 715 | 260 147 143 11 154 . Remotely . | . . . . . . Salvage Created 519 | . 375 73 10 61 . Parts 57 | . 39 10 . 8 . Haulers Intercepted . | . . . . . . Recyclers Shooed . | . . . . . . Parts Field Recycled . | . . . . . . Retrieved Matter . | . . . . . . Parts Self-Destructed . | . . . . . . Prevented . | . . . . . . Kills | -11 -10 -10 -9 -9 -8 ------- Run | Yrd Mat Min Mat Min Mat Combat Hostiles Destroyed 27 | . 13 5 1 8 . Guns 14 | . 13 1 . . . Cannons 9 | . . . 1 8 . AOE 4 | . . 4 . . . Classes Destroyed 4 | . 4 . . . . Worker 2 | . 1 1 . . . Operator 1 | . 1 . . . . Swarmer 21 | . 9 4 . 8 . Grunt 6 | . 4 1 1 . . Best Kill Streak 4 | . 4 4 1 4 . Combat Bots Only 4 | . 4 4 1 4 . Max Kills in Single Turn 3 | . 1 3 1 1 . Gunslinging . | . . . . . . Exploded 3 | . . 3 . . . Melee . | . . . . . . Uniques/NPCs Destroyed . | . . . . . . Combat | -11 -10 -10 -9 -9 -8 -------- Run | Yrd Mat Min Mat Min Mat Hostile Shots Fired 171 | . 83 23 4 61 . Missed 41 | . 21 8 . 12 . Damage Taken 1244 | . 547 254 46 397 . Core 167 | . 85 46 . 36 . Absorbed by Shields . | . . . . . . Core Remaining (%) 79 | 100 . 47 . 91 . Volleys Fired 71 | . 39 9 4 19 . Largest 2 | . 2 2 2 2 . Hottest 78 | . 76 55 74 78 . Shots Fired 142 | . 78 18 8 38 . Gun 87 | . 78 9 . . . Cannon 52 | . . 6 8 38 . Launcher 3 | . . 3 . . . Special . | . . . . . . Kinetic 118 | . 57 15 8 38 . Thermal 21 | . 21 . . . . Explosive 3 | . . 3 . . . Electromagnetic . | . . . . . . Robot Hit Streak 10 | . 8 10 9 6 . Robot Miss Streak 3 | . 3 2 . 2 . Penetration Max . | . . . . . . Secondary Targets 5 | . 5 . . . . Max Gunslinging Chain 1 | . 1 . . . . Shots Hit Robots 82 | . 44 12 7 19 . Core Hits 48 | . 30 10 1 7 . Critical Kills 1 | . . 1 . . . Critical Parts Destroyed . | . . . . . . Critical Strikes 2 | . . 1 . 1 . Destroy 1 | . . 1 . . . Blast 1 | . . . . 1 . Melee Attacks . | . . . . . . Impact . | . . . . . . Slashing . | . . . . . . Piercing . | . . . . . . Sneak Attacks . | . . . . . . Combat Hostiles . | . . . . . . Follow-up Attacks . | . . . . . . Damage Inflicted 1307 | . 452 365 131 359 . Guns 500 | . 452 48 . . . Cannons 556 | . . 66 131 359 . Explosions 251 | . . 251 . . . Melee . | . . . . . . Ramming . | . . . . . . Kinetic 926 | . 322 114 131 359 . Thermal 130 | . 130 . . . . Explosive 251 | . . 251 . . . Electromagnetic . | . . . . . . Impact . | . . . . . . Slashing . | . . . . . . Piercing . | . . . . . . Highest Corruption . | . . . . . . Average Corruption . | . . . . . . Corruption Purged . | . . . . . . Corruption Blocked . | . . . . . . Overload Shots . | . . . . . . Overflow Damage 26 | . . 26 . . . Projectiles . | . . . . . . Explosions 26 | . . 26 . . . Melee . | . . . . . . Knockbacks 11 | . . . 3 8 . Impact . | . . . . . . Kinetic 11 | . . . 3 8 . Secondary . | . . . . . . Self-Inflicted Damage 84 | . . 84 . . . Shots 3 | . . 3 . . . Rammed . | . . . . . . Targets Rammed . | . . . . . . Kicked . | . . . . . . Crushed . | . . . . . . Highest Temperature 135 | . 82 68 78 135 . Average Temperature 35 | . 25 24 42 50 . Received Heat Transfer 231 | . 138 69 24 . . Siege Activations . | . . . . . . Robots Corrupted . | . . . . . . Combat Hostiles . | . . . . . . Parts Fried . | . . . . . . Impact Corruptions . | . . . . . . Robots Melted . | . . . . . . Combat Hostiles . | . . . . . . Parts Melted . | . . . . . . Heat Transferred 287 | . 287 . . . . Parts Sabotaged . | . . . . . . Parts Stolen . | . . . . . . Parts Stripped . | . . . . . . Power Chain Reactions . | . . . . . . Alert | -11 -10 -10 -9 -9 -8 ------- Run | Yrd Mat Min Mat Min Mat Peak Influence 305 | . 305 190 89 215 . Initial 93 | . . 93 13 34 13 Average 105 | . 164 111 45 83 . Maximum Alert Level 1 | . 1 . . 1 . Low Security (%) 88 | 100 63 100 100 98 . Level 1 11 | . 36 . . 1 . Level 2 . | . . . . . . Level 3 . | . . . . . . Level 4 . | . . . . . . Level 5 . | . . . . . . High Security . | . . . . . . Max Security . | . . . . . . Squads Dispatched 4 | . 3 . 1 . . Investigation 1 | . 1 . . . . Extermination . | . . . . . . Reinforcement 3 | . 2 . 1 . . Assault . | . . . . . . Garrison . | . . . . . . Intercept . | . . . . . . Searches Triggered . | . . . . . . Construction Impeded . | . . . . . . Haulers Reinforced . | . . . . . . Active Scanning Responses . | . . . . . . Cargo Convoy Interrupts . | . . . . . . Stealth | -11 -10 -10 -9 -9 -8 --------- Run | Yrd Mat Min Mat Min Mat Distress Signals 2 | . 2 . . . . Communications Jammed . | . . . . . . Distress Signals . | . . . . . . Times Spotted 42 | . 24 6 4 8 . Peak Tracking Total 5 | . 5 4 2 4 . Tactical Retreats 1 | . 1 . . . . Traps | -11 -10 -10 -9 -9 -8 ------- Run | Yrd Mat Min Mat Min Mat Traps Triggered 2 | . 2 . . . . Indirectly . | . . . . . . Trap Hack Attempts . | . . . . . . Triggered . | . . . . . . Disarmed . | . . . . . . Reprogrammed . | . . . . . . Reused . | . . . . . . Traps Extracted . | . . . . . . Installed . | . . . . . . Triggered . | . . . . . . Machines | -11 -10 -10 -9 -9 -8 ---------- Run | Yrd Mat Min Mat Min Mat Machines Disabled . | . . . . . . Max in Single Turn . | . . . . . . Machines Repaired . | . . . . . . Machines Dismantled . | . . . . . . Machines Sabotaged . | . . . . . . Overloaded Fab Kills . | . . . . . . Hacking | -11 -10 -10 -9 -9 -8 --------- Run | Yrd Mat Min Mat Min Mat Machines Accessed 1 | . . . 1 . . Terminals 1 | . . . 1 . . Fabricators . | . . . . . . Repair Stations . | . . . . . . Recycling Units . | . . . . . . Scanalyzers . | . . . . . . Garrison Access . | . . . . . . Total Hacks 2 | . . . 2 . . Successful . | . . . . . . Failed 2 | . . . 2 . . Catastrophic 1 | . . . 1 . . Database Lockouts . | . . . . . . Manual 2 | . . . 2 . . Terminals 2 | . . . 2 . . Fabricators . | . . . . . . Repair Stations . | . . . . . . Recycling Units . | . . . . . . Scanalyzers . | . . . . . . Garrison Access . | . . . . . . Terminal Hacks . | . . . . . . Fabricator Hacks . | . . . . . . Repair Station Hacks . | . . . . . . Recycling Unit Hacks . | . . . . . . Scanalyzer . | . . . . . . Garrison Access Hacks . | . . . . . . Unauthorized Hacks . | . . . . . . Terminals . | . . . . . . Fabricators . | . . . . . . Repair Stations . | . . . . . . Recycling Units . | . . . . . . Scanalyzers . | . . . . . . Garrison Access . | . . . . . . Data Cores Recovered . | . . . . . . Used . | . . . . . . Hacking Detections . | . . . . . . Full Trace Events . | . . . . . . Feedback Events . | . . . . . . Feedback Blocked . | . . . . . . Robot Schematics Acquired . | . . . . . . Robots Built . | . . . . . . Authchips . | . . . . . . Time . | . . . . . . Total Robot Build Rating . | . . . . . . Part Schematics Acquired . | . . . . . . Parts Built . | . . . . . . Authchips . | . . . . . . Time . | . . . . . . Total Part Build Rating . | . . . . . . Parts Repaired . | . . . . . . Time . | . . . . . . Parts Recycled . | . . . . . . Recycled Matter . | . . . . . . Retrieved Matter . | . . . . . . Retrieved Components . | . . . . . . Parts Scanalyzed . | . . . . . . Part Schematics Acquired . | . . . . . . Parts Damaged . | . . . . . . Bothacking | -11 -10 -10 -9 -9 -8 ------------ Run | Yrd Mat Min Mat Min Mat Used RIF Installer . | . . . . . . Robots Hacked . | . . . . . . Non-combat . | . . . . . . Combat . | . . . . . . Robot Hacks Applied . | . . . . . . Relay Couplers Released . | . . . . . . Fabnet Peak Effective % . | . . . . . . Robots Rewired . | . . . . . . Allies Hacked . | . . . . . . Hacks Repelled . | . . . . . . Allies | -11 -10 -10 -9 -9 -8 -------- Run | Yrd Mat Min Mat Min Mat Total Allies . | . . . . . . Largest Group . | . . . . . . Highest-Rated Group . | . . . . . . Highest-Rated Ally . | . . . . . . Total Orders . | . . . . . . Ally Attacks . | . . . . . . Total Damage . | . . . . . . Kills . | . . . . . . Allies Corrupted . | . . . . . . Allies Melted . | . . . . . . Intel | -11 -10 -10 -9 -9 -8 ------- Run | Yrd Mat Min Mat Min Mat Robot Analysis Total . | . . . . . . Derelict Logs Recovered 2 | . . . . 2 . Drone Launches . | . . . . . . Drone Recoveries . | . . . . . . Exploration | -11 -10 -10 -9 -9 -8 ------------- Run | Yrd Mat Min Mat Min Mat Turns Passed 1908 | 69 574 500 344 421 . Spaces Moved 1091 | 46 340 315 93 297 . Core 2 | 2 . . . . . Treads . | . . . . . . Legs 1089 | 44 340 315 93 297 . Wheels . | . . . . . . Hover . | . . . . . . Flight . | . . . . . . Fastest Speed 50 | 50 120 120 120 120 . Average Speed 127 | 121 120 146 120 120 . Slowest Speed 190 | 190 120 190 120 120 . Overloaded Moves . | . . . . . . Propulsion Burnouts . | . . . . . . Robots Hopped . | . . . . . . Cave-ins Triggered . | . . . . . . Exploration Rate (%) 38 | 4 55 75 14 83 1 Regions Visited 5 Branch Regions 2 Pre-discovered Areas . | . . . . . . Known Exits Taken . | . . . . . . Unknown Exits Taken 5 | 1 1 1 1 1 . Scrap Searched 2 | . . 1 . 1 . Spaces Dug . | . . . . . . Terrain Destroyed 19 | . . 17 . 2 . Melee . | . . . . . . Projectile 2 | . . . . 2 . AOE 17 | . . 17 . . . Terrain Rammed . | . . . . . . Walls Destroyed . | . . . . . . Machines Disabled . | . . . . . . Actions | -11 -10 -10 -9 -9 -8 --------- Run | Yrd Mat Min Mat Min Mat Total 1477 | 56 440 338 318 325 . Wait 250 | . 28 7 211 4 . Move 1086 | 45 339 314 92 296 . Hop . | . . . . . . Pick Up 19 | 4 11 1 3 . . Fast Attach 11 | 6 3 . 1 1 . Attach 6 | . 1 2 2 1 . Detach 3 | . . 1 . 2 . Swap 14 | . 9 3 2 . . Drop 17 | 1 10 1 3 2 . Fire 71 | . 39 9 4 19 . Melee . | . . . . . . Ram . | . . . . . . Kick . | . . . . . . Crush . | . . . . . . Escape Stasis . | . . . . . . Rewire . | . . . . . . Trap . | . . . . . . Miscellaneous . | . . . . . . Route ------- -11/Scrapyard -10/Materials (discovered 2 exits: *Mat / [*Min]) -10/Mines -9/Materials -9/Mines (discovered 2 exits: [*Mat x2]) -8/Materials History --------- Turn | Location | Event 14 | -11/Scrapyard | Discovered new exit (range 16) 70 | -11/Scrapyard | Entered Materials 310 | -10/Materials | Build established: Mutant 518 | -10/Materials | Discovered new exit (range 11) 625 | -10/Materials | Discovered new exit (range 11) 644 | -10/Materials | Entered Mines 834 | -10/Mines | Build established: Scavenger-Mutant 1043 | -10/Mines | Core integrity fell below 50% 1128 | -10/Mines | Discovered new exit (range 7) 1144 | -10/Mines | Entered Materials 1144 | -9/Materials | Evolved 2 slots: Propulsion x1, Utility x1 1449 | -9/Materials | Discovered new exit (range 16) 1473 | -9/Materials | Build established: Mutant 1488 | -9/Materials | Entered Mines 1682 | -9/Mines | Discovered new exit (range 13) 1736 | -9/Mines | Learned 2 Materials zone layouts 1850 | -9/Mines | Discovered new exit (range 11) 1909 | -9/Mines | Entered Materials 1909 | -8/Materials | Evolved 2 slots: Propulsion x1, Utility x1 1909 | -8/Materials | Self-destructed Last Messages --------------- 01868_ S-10 Pest suffers critical hit (Blast). 01868_ S-10 Pest destroyed. 01872_ S-10 Pest knocked back. 01875_ S-10 Pest destroyed. 01880_ Lgt. Cannon destroyed. 01881_ Acquired 16 matter. 01883_ S-10 Pest destroyed. 01886_ S-10 Pest knocked back. 01892_ S-10 Pest destroyed. 01896_ Acquired 7 matter. 01897_ Acquired 4 matter. 01900_ Acquired 1 matter. 01902_ Acquired 5 matter. 01903_ Acquired 3 matter. 01904_ Dropped Lgt. Assault Rifle. 01907_ Dropped Imp. Ion Engine. 01908_ Acquired Lgt. Ion Engine. PARAMETERS=PROPULSION+1,UTILITY+1 LOCATION=UNKNOWN GOAL=ESCAPE Map ----- +----------------------------------------------------+ | ?????????????????????????????????????????????????? | | ?????????????????????????????????????????????????? | | ?????????????????????????????????????????????????? | | ?????????????????????????????????????????????????? | | ?????????????????????????????????????????????????? | | ?????????????????????????????????????????????????? | | ?????????????????????????????????????????????????? | | ?????????????????????????????????????????????????? | | ?????????????????????????????????????????????????? | | ?????????????????????????????????????????????????? | | ???????????????????????? ??????????????????????? | | ???????????????????????# ??????????????????????? | | ??????????????????????? ??????????????????????? | | ??????????????????????? +?????????????????????? | | ??????????????????????? #?????????????????????? | | ???????????????????????# #?????????????????????? | | ???????????????????????# #?????????????????????? | | ???????????????????????# #?????????????????????? | | ???????????????????????# #?????????????????????? | | ???????????????????????# #?????????????????????? | | ???????????????????????# #?????????????????????? | | ???????????????????????# #?????????????????????? | | ???????????????????????# #?????????????????????? | | ???????????????????????+ +?????????????????????? | | ???????????????????????# #?????????????????????? | | ???????????????????????# @ #?????????????????????? | | ???????????????????????# #?????????????????????? | | ???????????????????????#####?????????????????????? | | ?????????????????????????????????????????????????? | | ?????????????????????????????????????????????????? | | ?????????????????????????????????????????????????? | | ?????????????????????????????????????????????????? | | ?????????????????????????????????????????????????? | | ?????????????????????????????????????????????????? | | ?????????????????????????????????????????????????? | | | | | | | | | | | | | | | | | | | | | | | | | | | | | | | +----------------------------------------------------+ Best States ------------- Heat Dissipation 28 Energy Generation 12 Energy Capacity 265 Matter Stores 300 Matter Capacity 300 Sight Range 16 Terrain Scan Density 10 Armor Coverage 150 Evasion (%) 55 Targeting Accuracy 5 Item Schematics ----------------- None Robot Schematics ------------------ None Fabricated ------------ Nothing Alien Tech Used ----------------- None Achievements -------------- None Challenges ------------ None Game ------ Seed SwarmAdvancedInverter Manual? 0 Play Time 00:12:16 Cumulative 11.1 hours Start 2024.06.12 @ 00:34:10 End 2024.06.12 @ 00:46:24 Sessions 1 Manual Loads 0 Difficulty Rogue Special Mode None Game No. 21 Rogue 14 Adventurer 7 Explorer 0 Win Type - Total 0 Types 0/0/0/0/0/0/0/0/0 Lore% 5 Gallery% 14 Achievement% 17 Wizard Run 0 Options --------- Layout 0 ASCII 0 Keyboard 0 Movement Mouse Keybinds 0 Fullscreen 2 Font 24/Smallcaps Map View 113x50 Zoom Use 0% Tactical HUD 1 Map Filters NONE Filters NONE Steam 1 RUN: 8ce9e664-1d98-46ed-b1f3-cccacc553dc5